[Event "*** Titled Tuesday Blitz"]
[Site "Chess.com"]
[Date "2020.04.28"]
[Round "2"]
[White "MusicCityMaster"]
[Black "RubensCezila"]
[Result "0-1"]
[WhiteElo "2240"]
[BlackElo "2466"]
[TimeControl "180+1"]
[EndTime "10:16:30 PDT"]
[Termination "RubensCezila won by resignation"]

1. e4 {[%clk 0:03:00.7]} 1... c6 {[%clk 0:02:59.2]} 2. d4 {[%clk 0:02:59.5]}
2... d5 {[%clk 0:02:59.3]} 3. Nc3 {[%clk 0:02:58.4]} 3... dxe4 {[%clk
0:02:59.3]} 4. Nxe4 {[%clk 0:02:59.2]} 4... Nf6 {[%clk 0:03:00.2]} 5. Nxf6+
{[%clk 0:02:58.4]} 5... exf6 {[%clk 0:03:01.1]} 6. Bc4 {[%clk 0:02:58.2]} 6...
Bd6 {[%clk 0:03:01.1]} 7. Ne2 {[%clk 0:02:49.9]} 7... O-O {[%clk 0:03:00.6]} 8.
O-O {[%clk 0:02:47.8]} 8... Qc7 {[%clk 0:02:54.2]} 9. h3 {[%clk 0:02:42.7]} 9...
Re8 {[%clk 0:02:52.4]} 10. c3 {[%clk 0:02:41]} 10... Nd7 {[%clk 0:02:52.3]} 11.
Be3 {[%clk 0:02:40.1]} 11... Nf8 {[%clk 0:02:51.8]} 12. Qd2 {[%clk 0:02:37.5]}
12... Ng6 {[%clk 0:02:50.5]} 13. Rae1 {[%clk 0:02:33.7]} 13... b5 {[%clk
0:02:46]} 14. Bb3 {[%clk 0:02:29]} 14... a5 {[%clk 0:02:45.5]} 15. f4 {[%clk
0:02:26.5]} 15... Bf5 {[%clk 0:02:23.2]} 16. Ng3 {[%clk 0:02:20.6]} 16... Nh4
{[%clk 0:02:21.9]} 17. Qf2 {[%clk 0:02:12.4]} 17... Bd3 {[%clk 0:02:13.5]} 18.
Ne2 {[%clk 0:02:10]} 18... Nf5 {[%clk 0:02:05.1]} 19. Bd2 {[%clk 0:02:10]} 19...
Bxe2 {[%clk 0:01:58]} 20. Rxe2 {[%clk 0:02:09.4]} 20... Rxe2 {[%clk 0:01:58.9]}
21. Qxe2 {[%clk 0:02:08.7]} 21... Ng3 {[%clk 0:01:59.5]} 22. Qf3 {[%clk
0:01:54.2]} 22... Nxf1 {[%clk 0:01:57.5]} 23. Qxf1 {[%clk 0:01:54.8]} 23... a4
{[%clk 0:01:52.2]} 24. Bc2 {[%clk 0:01:54.3]} 24... Re8 {[%clk 0:01:50.9]} 25.
Qd3 {[%clk 0:01:51.6]} 25... Bxf4 {[%clk 0:01:26.1]} 26. Qxh7+ {[%clk
0:01:42.9]} 26... Kf8 {[%clk 0:01:26.1]} 27. Qd3 {[%clk 0:01:25]} 27... Bxd2
{[%clk 0:01:23.1]} 28. Qxd2 {[%clk 0:01:25.9]} 28... Qg3 {[%clk 0:01:22.8]} 29.
Bd3 {[%clk 0:01:23]} 29... Qe3+ {[%clk 0:01:04]} 30. Qxe3 {[%clk 0:01:22.7]}
30... Rxe3 {[%clk 0:01:04.9]} 31. Bf1 {[%clk 0:01:22.6]} 31... a3 {[%clk
0:01:05.3]} 32. bxa3 {[%clk 0:01:19.8]} 32... Rxc3 {[%clk 0:01:05.4]} 33. d5
{[%clk 0:01:15.3]} 33... cxd5 {[%clk 0:01:00.8]} 34. Bxb5 {[%clk 0:01:15]} 34...
Rxa3 {[%clk 0:01:01]} 35. Bc6 {[%clk 0:01:15.5]} 35... d4 {[%clk 0:00:54.5]} 36.
Bd5 {[%clk 0:01:15.3]} 36... d3 {[%clk 0:00:39.4]} 37. Kf2 {[%clk 0:01:14.6]}
37... d2 {[%clk 0:00:39.8]} 38. Ke2 {[%clk 0:01:13.3]} 38... d1=Q+ {[%clk
0:00:40.1]} 0-1

[Event "*** Titled Tuesday Blitz"]
[Site "Chess.com"]
[Date "2020.04.28"]
[Round "2"]
[White "Morshynska"]
[Black "davigator"]
[Result "0-1"]
[WhiteElo "2068"]
[BlackElo "2388"]
[TimeControl "180+1"]
[EndTime "10:16:31 PDT"]
[Termination "davigator won by checkmate"]

1. e4 {[%clk 0:03:00.9]} 1... c5 {[%clk 0:02:56.9]} 2. d3 {[%clk 0:02:58.5]}
2... g6 {[%clk 0:02:55.6]} 3. f4 {[%clk 0:02:57.3]} 3... Bg7 {[%clk 0:02:55.8]}
4. Nf3 {[%clk 0:02:57.9]} 4... d6 {[%clk 0:02:56.3]} 5. Be2 {[%clk 0:02:56.9]}
5... Nc6 {[%clk 0:02:56.6]} 6. c3 {[%clk 0:02:57.7]} 6... e6 {[%clk 0:02:54]} 7.
O-O {[%clk 0:02:57.8]} 7... Nge7 {[%clk 0:02:54.5]} 8. Kh1 {[%clk 0:02:57.1]}
8... O-O {[%clk 0:02:54.5]} 9. Be3 {[%clk 0:02:55.8]} 9... b6 {[%clk 0:02:52.7]}
10. Nbd2 {[%clk 0:02:53.7]} 10... Bb7 {[%clk 0:02:52.4]} 11. a4 {[%clk
0:02:46.8]} 11... a6 {[%clk 0:02:47.4]} 12. d4 {[%clk 0:02:21.6]} 12... Qc7
{[%clk 0:02:37.1]} 13. Rc1 {[%clk 0:02:07.9]} 13... Rad8 {[%clk 0:02:32]} 14.
Qe1 {[%clk 0:01:58.2]} 14... Qb8 {[%clk 0:02:30.1]} 15. Qh4 {[%clk 0:01:52.9]}
15... f6 {[%clk 0:02:25.1]} 16. g4 {[%clk 0:01:27.6]} 16... f5 {[%clk 0:02:18]}
17. gxf5 {[%clk 0:01:20.2]} 17... exf5 {[%clk 0:02:17.9]} 18. d5 {[%clk
0:01:16.6]} 18... fxe4 {[%clk 0:02:10.4]} 19. Ng5 {[%clk 0:00:32.6]} 19... h6
{[%clk 0:02:08.4]} 20. dxc6 {[%clk 0:00:19.3]} 20... Nf5 {[%clk 0:02:04.1]} 21.
Qh3 {[%clk 0:00:17.7]} 21... Bc8 {[%clk 0:02:00.3]} 22. Bg4 {[%clk 0:00:12.3]}
22... hxg5 {[%clk 0:01:54.8]} 23. fxg5 {[%clk 0:00:10.6]} 23... d5 {[%clk
0:01:50.1]} 24. Bf4 {[%clk 0:00:09.2]} 24... Be5 {[%clk 0:01:45.4]} 25. Bxe5
{[%clk 0:00:09.2]} 25... Qxe5 {[%clk 0:01:44.6]} 26. Bxf5 {[%clk 0:00:09.1]}
26... Bxf5 {[%clk 0:01:43.7]} 27. Qg2 {[%clk 0:00:10]} 27... Rd6 {[%clk
0:01:42]} 28. c7 {[%clk 0:00:09.7]} 28... Rc6 {[%clk 0:01:42.1]} 29. c4 {[%clk
0:00:09.9]} 29... d4 {[%clk 0:01:41.4]} 30. Nb3 {[%clk 0:00:09.2]} 30... Rxc7
{[%clk 0:01:40.7]} 31. Rce1 {[%clk 0:00:08.2]} 31... Re7 {[%clk 0:01:40.3]} 32.
Qg3 {[%clk 0:00:08.3]} 32... e3 {[%clk 0:01:37.3]} 33. Qxe5 {[%clk 0:00:06.9]}
33... Rxe5 {[%clk 0:01:38.2]} 34. Nc1 {[%clk 0:00:06.4]} 34... Be4+ {[%clk
0:01:38]} 35. Kg1 {[%clk 0:00:06.4]} 35... Rxg5# {[%clk 0:01:38.1]} 0-1

[Event "*** Titled Tuesday Blitz"]
[Site "Chess.com"]
[Date "2020.04.28"]
[Round "2"]
[White "Lunow"]
[Black "jonaszmb"]
[Result "0-1"]
[WhiteElo "2198"]
[BlackElo "2438"]
[TimeControl "180+1"]
[EndTime "10:16:33 PDT"]
[Termination "jonaszmb won by resignation"]

1. c4 {[%clk 0:03:00.9]} 1... e6 {[%clk 0:02:58.9]} 2. g3 {[%clk 0:03:00.7]}
2... Nf6 {[%clk 0:02:58.9]} 3. Bg2 {[%clk 0:03:00.6]} 3... d5 {[%clk 0:02:59.1]}
4. Nf3 {[%clk 0:03:00.6]} 4... dxc4 {[%clk 0:02:59.3]} 5. Qa4+ {[%clk
0:02:57.1]} 5... Nbd7 {[%clk 0:02:58.7]} 6. Qxc4 {[%clk 0:02:56.5]} 6... a6
{[%clk 0:02:59]} 7. O-O {[%clk 0:02:54.8]} 7... b5 {[%clk 0:02:58.7]} 8. Qc2
{[%clk 0:02:54.3]} 8... Bb7 {[%clk 0:02:58.8]} 9. a4 {[%clk 0:02:48.4]} 9... c5
{[%clk 0:02:54.2]} 10. d3 {[%clk 0:02:41.6]} 10... Bd6 {[%clk 0:02:50]} 11. Nc3
{[%clk 0:02:22.6]} 11... b4 {[%clk 0:02:46.3]} 12. Nd1 {[%clk 0:02:20.7]} 12...
O-O {[%clk 0:02:38.9]} 13. b3 {[%clk 0:02:16.9]} 13... e5 {[%clk 0:02:06.1]} 14.
Bb2 {[%clk 0:02:09.3]} 14... e4 {[%clk 0:02:03.1]} 15. Nh4 {[%clk 0:01:24.6]}
15... exd3 {[%clk 0:01:59.4]} 16. exd3 {[%clk 0:01:25.5]} 16... Bxg2 {[%clk
0:01:59.1]} 17. Nxg2 {[%clk 0:01:23.5]} 17... Be5 {[%clk 0:01:45.7]} 18. Nde3
{[%clk 0:01:20.2]} 18... Bxb2 {[%clk 0:01:42.7]} 19. Qxb2 {[%clk 0:01:21.1]}
19... Re8 {[%clk 0:01:39.2]} 20. Nc4 {[%clk 0:01:09]} 20... Nd5 {[%clk
0:01:34.8]} 21. d4 {[%clk 0:01:03]} 21... Nc3 {[%clk 0:01:32.3]} 22. Rfe1 {[%clk
0:00:34.9]} 22... cxd4 {[%clk 0:01:29.7]} 23. Qd2 {[%clk 0:00:27.2]} 23... Nc5
{[%clk 0:01:26.3]} 24. Rxe8+ {[%clk 0:00:19.4]} 24... Qxe8 {[%clk 0:01:27.2]}
25. Re1 {[%clk 0:00:14.5]} 25... Qd8 {[%clk 0:01:19]} 26. Qf4 {[%clk 0:00:09.2]}
26... Nd3 {[%clk 0:01:14.8]} 0-1

[Event "*** Titled Tuesday Blitz"]
[Site "Chess.com"]
[Date "2020.04.28"]
[Round "2"]
[White "Spartakus1975"]
[Black "KaterinaMiroshnik"]
[Result "1-0"]
[WhiteElo "2733"]
[BlackElo "2397"]
[TimeControl "180+1"]
[EndTime "10:16:34 PDT"]
[Termination "Spartakus1975 won by resignation"]

1. e4 {[%clk 0:03:00.9]} 1... d6 {[%clk 0:03:00]} 2. d4 {[%clk 0:03:00.2]} 2...
Nd7 {[%clk 0:03:00.9]} 3. Nc3 {[%clk 0:02:58.5]} 3... e5 {[%clk 0:03:00.6]} 4.
f4 {[%clk 0:02:53.2]} 4... Ngf6 {[%clk 0:02:59.2]} 5. Nf3 {[%clk 0:02:52.2]}
5... exd4 {[%clk 0:02:58.1]} 6. Qxd4 {[%clk 0:02:50.9]} 6... c6 {[%clk
0:02:58.6]} 7. Be3 {[%clk 0:02:49.5]} 7... d5 {[%clk 0:02:54.2]} 8. e5 {[%clk
0:02:36.8]} 8... Ng4 {[%clk 0:02:50.6]} 9. Bg1 {[%clk 0:02:34.5]} 9... Bc5
{[%clk 0:02:49.3]} 10. Qd2 {[%clk 0:02:34.4]} 10... Bxg1 {[%clk 0:02:37.1]} 11.
Rxg1 {[%clk 0:02:34.2]} 11... Qb6 {[%clk 0:02:34.7]} 12. O-O-O {[%clk
0:02:28.5]} 12... h5 {[%clk 0:02:17.9]} 13. h3 {[%clk 0:02:23.4]} 13... Nh6
{[%clk 0:02:17.5]} 14. g4 {[%clk 0:02:20.6]} 14... hxg4 {[%clk 0:02:17.4]} 15.
hxg4 {[%clk 0:02:21]} 15... Nc5 {[%clk 0:02:18]} 16. f5 {[%clk 0:02:21]} 16...
Bd7 {[%clk 0:02:00]} 17. Nd4 {[%clk 0:02:12.6]} 17... O-O-O {[%clk 0:01:56.1]}
18. Be2 {[%clk 0:02:05.7]} 18... g6 {[%clk 0:01:46.8]} 19. Qf4 {[%clk
0:01:58.4]} 19... Qc7 {[%clk 0:01:28.2]} 20. b4 {[%clk 0:01:44.2]} 20... Ne4
{[%clk 0:01:12.4]} 21. Nxe4 {[%clk 0:01:43.5]} 21... dxe4 {[%clk 0:01:13.3]} 22.
Qxe4 {[%clk 0:01:41.2]} 22... gxf5 {[%clk 0:01:12.9]} 23. gxf5 {[%clk
0:01:40.8]} 23... Rhe8 {[%clk 0:01:11.7]} 24. e6 {[%clk 0:01:39.4]} 24... fxe6
{[%clk 0:00:59.8]} 25. fxe6 {[%clk 0:01:39]} 25... Kb8 {[%clk 0:00:51.4]} 26.
Rg7 {[%clk 0:01:36.1]} 26... Qc8 {[%clk 0:00:29]} 27. Qf4+ {[%clk 0:01:26.6]}
27... Ka8 {[%clk 0:00:27.1]} 28. exd7 {[%clk 0:01:22.7]} 28... Rxd7 {[%clk
0:00:28]} 29. Rxd7 {[%clk 0:01:22.2]} 29... Qxd7 {[%clk 0:00:28.9]} 30. Qxh6
{[%clk 0:01:22.2]} 30... Qe7 {[%clk 0:00:27.2]} 31. Qd2 {[%clk 0:01:16.4]} 31...
Rd8 {[%clk 0:00:25.7]} 32. Nxc6 {[%clk 0:01:12.1]} 1-0

[Event "*** Titled Tuesday Blitz"]
[Site "Chess.com"]
[Date "2020.04.28"]
[Round "2"]
[White "pheonixking2000"]
[Black "GMMatamoros"]
[Result "1-0"]
[WhiteElo "2806"]
[BlackElo "2531"]
[TimeControl "180+1"]
[EndTime "10:16:36 PDT"]
[Termination "pheonixking2000 won on time"]

1. c4 {[%clk 0:03:00.9]} 1... e5 {[%clk 0:02:56.2]} 2. g3 {[%clk 0:02:59.7]}
2... Bc5 {[%clk 0:02:50.5]} 3. Bg2 {[%clk 0:02:59.8]} 3... Nc6 {[%clk
0:02:50.3]} 4. Nc3 {[%clk 0:03:00.3]} 4... d6 {[%clk 0:02:49.7]} 5. Nf3 {[%clk
0:03:00.7]} 5... a6 {[%clk 0:02:49]} 6. O-O {[%clk 0:03:00.6]} 6... Ba7 {[%clk
0:02:47.8]} 7. e3 {[%clk 0:02:59]} 7... Nf6 {[%clk 0:02:39.1]} 8. d4 {[%clk
0:02:58.4]} 8... Bg4 {[%clk 0:02:35.8]} 9. Ne2 {[%clk 0:02:55.6]} 9... Qc8
{[%clk 0:02:17.2]} 10. b3 {[%clk 0:02:55.2]} 10... O-O {[%clk 0:02:11.4]} 11.
Bb2 {[%clk 0:02:55.7]} 11... Re8 {[%clk 0:02:03.5]} 12. Qd2 {[%clk 0:02:56.2]}
12... Bh3 {[%clk 0:01:59.9]} 13. Nc3 {[%clk 0:02:29.9]} 13... Bxg2 {[%clk
0:01:46.7]} 14. Kxg2 {[%clk 0:02:30]} 14... exd4 {[%clk 0:01:18.9]} 15. Nxd4
{[%clk 0:02:29.8]} 15... Nxd4 {[%clk 0:01:04.7]} 16. exd4 {[%clk 0:02:30.5]}
16... Qf5 {[%clk 0:01:04.9]} 17. Rae1 {[%clk 0:02:29.9]} 17... d5 {[%clk
0:01:04.9]} 18. Re5 {[%clk 0:02:24.8]} 18... Rxe5 {[%clk 0:00:17]} 19. dxe5
{[%clk 0:01:51.4]} 19... Ne4 {[%clk 0:00:15.8]} 20. Nxe4 {[%clk 0:01:50.6]}
20... dxe4 {[%clk 0:00:12.3]} 21. Qf4 {[%clk 0:01:48.7]} 21... Qxf4 {[%clk
0:00:11.4]} 22. gxf4 {[%clk 0:01:49.6]} 22... Rd8 {[%clk 0:00:11.8]} 23. Bc1
{[%clk 0:01:50.2]} 23... f5 {[%clk 0:00:11]} 24. exf6 {[%clk 0:01:49.8]} 24...
gxf6 {[%clk 0:00:11.9]} 25. f5 {[%clk 0:01:47.7]} 25... Kf7 {[%clk 0:00:07]} 26.
Re1 {[%clk 0:01:46.8]} 26... Re8 {[%clk 0:00:05.7]} 27. Bf4 {[%clk 0:01:44.7]}
27... Bb6 {[%clk 0:00:04.1]} 28. Rd1 {[%clk 0:01:41.3]} 28... Re7 {[%clk
0:00:03.4]} 29. b4 {[%clk 0:01:37.3]} 29... c5 {[%clk 0:00:01.8]} 30. Bd6 {[%clk
0:01:37.1]} 30... Rd7 {[%clk 0:00:01.7]} 31. a3 {[%clk 0:01:31.7]} 1-0

[Event "*** Titled Tuesday Blitz"]
[Site "Chess.com"]
[Date "2020.04.28"]
[Round "2"]
[White "Matveev_Vladimir"]
[Black "Shivagami"]
[Result "1-0"]
[WhiteElo "2417"]
[BlackElo "2140"]
[TimeControl "180+1"]
[EndTime "10:16:36 PDT"]
[Termination "Matveev_Vladimir won by resignation"]

1. d4 {[%clk 0:03:00.9]} 1... Nf6 {[%clk 0:02:59.5]} 2. c4 {[%clk 0:03:00.9]}
2... c5 {[%clk 0:02:59.6]} 3. d5 {[%clk 0:03:00.6]} 3... e6 {[%clk 0:03:00.3]}
4. Nc3 {[%clk 0:03:00.3]} 4... exd5 {[%clk 0:03:00.6]} 5. cxd5 {[%clk
0:03:01.2]} 5... d6 {[%clk 0:03:01]} 6. e4 {[%clk 0:03:01.8]} 6... g6 {[%clk
0:03:01.2]} 7. Nge2 {[%clk 0:02:57.8]} 7... a6 {[%clk 0:02:59.5]} 8. a4 {[%clk
0:02:57]} 8... Bg7 {[%clk 0:02:59.7]} 9. Ng3 {[%clk 0:02:57.5]} 9... O-O {[%clk
0:02:59.3]} 10. Be2 {[%clk 0:02:57.5]} 10... Nbd7 {[%clk 0:02:56.6]} 11. O-O
{[%clk 0:02:57.5]} 11... Rb8 {[%clk 0:02:54.9]} 12. h4 {[%clk 0:02:54]} 12...
Ne5 {[%clk 0:02:52.2]} 13. h5 {[%clk 0:02:53]} 13... Bg4 {[%clk 0:02:45.8]} 14.
hxg6 {[%clk 0:02:51.8]} 14... fxg6 {[%clk 0:02:43.1]} 15. f4 {[%clk 0:02:41.6]}
15... Bxe2 {[%clk 0:02:40.9]} 16. Qxe2 {[%clk 0:02:42.5]} 16... Neg4 {[%clk
0:02:29.8]} 17. e5 {[%clk 0:02:40.2]} 17... dxe5 {[%clk 0:02:25.8]} 18. fxe5
{[%clk 0:02:41.1]} 18... Re8 {[%clk 0:02:18.9]} 19. e6 {[%clk 0:02:26.1]} 19...
b5 {[%clk 0:01:21.7]} 20. axb5 {[%clk 0:02:23.6]} 20... axb5 {[%clk 0:01:21.4]}
21. Bf4 {[%clk 0:02:23.3]} 21... Rb7 {[%clk 0:01:17.6]} 22. d6 {[%clk
0:01:52.1]} 22... b4 {[%clk 0:01:08.9]} 23. e7 {[%clk 0:01:51.8]} 23... Qd7
{[%clk 0:01:02.1]} 24. Nce4 {[%clk 0:01:50.6]} 24... Nxe4 {[%clk 0:00:57.8]} 25.
Nxe4 {[%clk 0:01:44]} 25... Ne5 {[%clk 0:00:54.2]} 26. Rad1 {[%clk 0:01:39.1]}
26... Rb5 {[%clk 0:00:42.3]} 27. Bh6 {[%clk 0:01:33.8]} 27... c4 {[%clk
0:00:34.6]} 28. Bxg7 {[%clk 0:01:27]} 28... Kxg7 {[%clk 0:00:31.1]} 29. Nf6
{[%clk 0:01:27.2]} 29... Qa7+ {[%clk 0:00:29]} 30. Qf2 {[%clk 0:01:27.4]} 30...
Qxf2+ {[%clk 0:00:21.1]} 31. Rxf2 {[%clk 0:01:28.3]} 1-0

[Event "*** Titled Tuesday Blitz"]
[Site "Chess.com"]
[Date "2020.04.28"]
[Round "2"]
[White "swapchess90"]
[Black "SanQui14"]
[Result "1-0"]
[WhiteElo "2691"]
[BlackElo "2323"]
[TimeControl "180+1"]
[EndTime "10:16:37 PDT"]
[Termination "swapchess90 won by resignation"]

1. d4 {[%clk 0:03:00.9]} 1... Nf6 {[%clk 0:02:58.5]} 2. c4 {[%clk 0:03:01.3]}
2... g6 {[%clk 0:02:57.8]} 3. Nc3 {[%clk 0:03:01.3]} 3... d5 {[%clk 0:02:58.5]}
4. Nf3 {[%clk 0:02:59.6]} 4... Bg7 {[%clk 0:02:58.4]} 5. cxd5 {[%clk 0:03:00.2]}
5... Nxd5 {[%clk 0:02:58.4]} 6. Na4 {[%clk 0:03:01.1]} 6... O-O {[%clk
0:02:56.8]} 7. e4 {[%clk 0:03:01.3]} 7... Nf6 {[%clk 0:02:57.5]} 8. e5 {[%clk
0:02:52.5]} 8... Nd5 {[%clk 0:02:57]} 9. Be2 {[%clk 0:02:52.2]} 9... Nc6 {[%clk
0:02:56.9]} 10. O-O {[%clk 0:02:52.1]} 10... Bg4 {[%clk 0:02:55.9]} 11. Nc5
{[%clk 0:02:36.4]} 11... Rb8 {[%clk 0:02:54.7]} 12. h3 {[%clk 0:02:35.7]} 12...
Bxf3 {[%clk 0:02:53.2]} 13. Bxf3 {[%clk 0:02:36.6]} 13... b6 {[%clk 0:02:52]}
14. Ne4 {[%clk 0:02:28.2]} 14... Qd7 {[%clk 0:02:41.7]} 15. Be3 {[%clk
0:02:21.7]} 15... Rfd8 {[%clk 0:02:33.3]} 16. Rc1 {[%clk 0:02:10.7]} 16... e6
{[%clk 0:02:31.8]} 17. Bg5 {[%clk 0:02:08.7]} 17... Nce7 {[%clk 0:02:30.7]} 18.
Nf6+ {[%clk 0:02:01.2]} 18... Bxf6 {[%clk 0:02:27.7]} 19. exf6 {[%clk
0:02:02.1]} 19... Nf5 {[%clk 0:02:25.9]} 20. Qd2 {[%clk 0:01:58.5]} 20... Qd6
{[%clk 0:02:09.1]} 21. g4 {[%clk 0:01:47.1]} 21... h6 {[%clk 0:02:05.2]} 22.
gxf5 {[%clk 0:01:44.3]} 22... hxg5 {[%clk 0:02:04.6]} 23. fxg6 {[%clk
0:01:44.3]} 23... fxg6 {[%clk 0:02:03.6]} 24. Qxg5 {[%clk 0:01:43.6]} 24... Kf7
{[%clk 0:02:03.4]} 25. Bxd5 {[%clk 0:01:41]} 25... exd5 {[%clk 0:01:59.9]} 26.
Rfe1 {[%clk 0:01:36.3]} 26... Re8 {[%clk 0:01:58]} 27. Re5 {[%clk 0:01:36.2]}
27... Rbc8 {[%clk 0:01:47.7]} 28. Rce1 {[%clk 0:01:35.8]} 28... Rxe5 {[%clk
0:01:38.9]} 29. dxe5 {[%clk 0:01:05.7]} 29... Qe6 {[%clk 0:01:33.3]} 30. Qh6
{[%clk 0:01:05.2]} 30... Rg8 {[%clk 0:01:32.7]} 31. Qh7+ {[%clk 0:01:03.8]}
31... Ke8 {[%clk 0:01:25.9]} 32. Qxc7 {[%clk 0:01:03.7]} 32... g5 {[%clk
0:01:26.2]} 33. Rc1 {[%clk 0:00:37.7]} 33... g4 {[%clk 0:01:14.5]} 34. Qc8+
{[%clk 0:00:33.9]} 34... Qxc8 {[%clk 0:01:08.8]} 35. Rxc8+ {[%clk 0:00:34.8]}
35... Kf7 {[%clk 0:01:09.1]} 36. Rxg8 {[%clk 0:00:35.3]} 36... Kxg8 {[%clk
0:01:09.4]} 37. hxg4 {[%clk 0:00:35.7]} 1-0

[Event "*** Titled Tuesday Blitz"]
[Site "Chess.com"]
[Date "2020.04.28"]
[Round "2"]
[White "Revnov"]
[Black "Nafania1"]
[Result "0-1"]
[WhiteElo "2665"]
[BlackElo "2367"]
[TimeControl "180+1"]
[EndTime "10:16:39 PDT"]
[Termination "Nafania1 won by resignation"]

1. e4 {[%clk 0:02:56.2]} 1... e6 {[%clk 0:02:59.9]} 2. Qe2 {[%clk 0:02:55.7]}
2... c5 {[%clk 0:02:59.2]} 3. g3 {[%clk 0:02:48.9]} 3... Nc6 {[%clk 0:02:59]} 4.
Bg2 {[%clk 0:02:44.2]} 4... g6 {[%clk 0:02:59.3]} 5. Nf3 {[%clk 0:02:42.9]} 5...
Bg7 {[%clk 0:02:59.5]} 6. O-O {[%clk 0:02:43.3]} 6... d6 {[%clk 0:02:57.8]} 7.
c3 {[%clk 0:02:42.8]} 7... e5 {[%clk 0:02:53.8]} 8. a3 {[%clk 0:02:42.3]} 8...
Nge7 {[%clk 0:02:51.4]} 9. b4 {[%clk 0:02:41.8]} 9... a6 {[%clk 0:02:50.8]} 10.
Bb2 {[%clk 0:02:39.1]} 10... O-O {[%clk 0:02:48.4]} 11. d3 {[%clk 0:02:35.7]}
11... h6 {[%clk 0:02:40.2]} 12. Nbd2 {[%clk 0:02:35.2]} 12... Be6 {[%clk
0:02:25]} 13. Rad1 {[%clk 0:02:29.5]} 13... cxb4 {[%clk 0:01:48.9]} 14. axb4
{[%clk 0:02:26.9]} 14... d5 {[%clk 0:01:48.8]} 15. exd5 {[%clk 0:02:22.7]} 15...
Bxd5 {[%clk 0:01:41.5]} 16. Ne4 {[%clk 0:02:19.1]} 16... f5 {[%clk 0:01:35.9]}
17. c4 {[%clk 0:02:08.3]} 17... Bf7 {[%clk 0:01:21.8]} 18. Nc5 {[%clk
0:02:07.8]} 18... b6 {[%clk 0:01:21.3]} 19. Nb3 {[%clk 0:01:59.2]} 19... Re8
{[%clk 0:01:14.4]} 20. Rfe1 {[%clk 0:01:56.1]} 20... Rc8 {[%clk 0:01:06.8]} 21.
Bc3 {[%clk 0:01:48.8]} 21... Nd4 {[%clk 0:00:58.3]} 22. Nfxd4 {[%clk 0:01:43.4]}
22... exd4 {[%clk 0:00:58.2]} 23. Bxd4 {[%clk 0:01:44.3]} 23... Bxd4 {[%clk
0:00:56.4]} 24. Qd2 {[%clk 0:01:40.1]} 24... Bg7 {[%clk 0:00:52.8]} 25. h4
{[%clk 0:01:35.7]} 25... h5 {[%clk 0:00:49.6]} 26. Qa2 {[%clk 0:01:27.9]} 26...
Nc6 {[%clk 0:00:43.5]} 27. Rxe8+ {[%clk 0:01:16.2]} 27... Qxe8 {[%clk
0:00:41.9]} 28. Qxa6 {[%clk 0:01:12.1]} 28... Nd4 {[%clk 0:00:32.1]} 29. Nd2
{[%clk 0:00:58.2]} 29... Rb8 {[%clk 0:00:30]} 30. Kf1 {[%clk 0:00:53.4]} 30...
Qe2+ {[%clk 0:00:29.3]} 31. Kg1 {[%clk 0:00:52.8]} 31... Qxd1+ {[%clk
0:00:29.6]} 0-1

[Event "*** Titled Tuesday Blitz"]
[Site "Chess.com"]
[Date "2020.04.28"]
[Round "2"]
[White "MaximDlugy"]
[Black "KarstenHansch"]
[Result "1-0"]
[WhiteElo "2903"]
[BlackElo "2450"]
[TimeControl "180+1"]
[EndTime "10:16:40 PDT"]
[Termination "MaximDlugy won by resignation"]

1. d4 {[%clk 0:03:00.8]} 1... d5 {[%clk 0:02:59.7]} 2. Bf4 {[%clk 0:03:00.9]}
2... e6 {[%clk 0:03:00]} 3. e3 {[%clk 0:03:01.3]} 3... Nf6 {[%clk 0:03:00.6]} 4.
Nd2 {[%clk 0:03:01.4]} 4... Bd6 {[%clk 0:03:00.4]} 5. Bg3 {[%clk 0:03:01.9]}
5... b6 {[%clk 0:02:55.3]} 6. Ngf3 {[%clk 0:03:02.2]} 6... c5 {[%clk 0:02:38.1]}
7. c3 {[%clk 0:03:01]} 7... Qc7 {[%clk 0:02:35.1]} 8. Bd3 {[%clk 0:02:56]} 8...
Nc6 {[%clk 0:02:30.9]} 9. Qe2 {[%clk 0:02:50.2]} 9... Bb7 {[%clk 0:02:27.6]} 10.
Rd1 {[%clk 0:02:40.8]} 10... O-O {[%clk 0:02:23.1]} 11. e4 {[%clk 0:02:41.2]}
11... dxe4 {[%clk 0:02:20.3]} 12. Nxe4 {[%clk 0:02:41.4]} 12... Nxe4 {[%clk
0:02:02.9]} 13. Qxe4 {[%clk 0:02:41.9]} 13... g6 {[%clk 0:01:59.5]} 14. dxc5
{[%clk 0:02:05.8]} 14... bxc5 {[%clk 0:01:39.2]} 15. Bxd6 {[%clk 0:02:05.6]}
15... Qxd6 {[%clk 0:01:32.2]} 16. Ba6 {[%clk 0:02:05.8]} 16... Qc7 {[%clk
0:01:30]} 17. Bxb7 {[%clk 0:02:05.9]} 17... Qxb7 {[%clk 0:01:30.8]} 18. Ne5
{[%clk 0:02:06.5]} 18... Rac8 {[%clk 0:00:54.5]} 19. O-O {[%clk 0:01:59.2]}
19... f5 {[%clk 0:00:36.7]} 20. Qf3 {[%clk 0:01:56.5]} 20... Rc7 {[%clk
0:00:29.1]} 21. Nc4 {[%clk 0:01:37.4]} 21... Qa6 {[%clk 0:00:25.5]} 22. Qf4
{[%clk 0:01:23.9]} 22... Re7 {[%clk 0:00:22.6]} 23. Rd6 {[%clk 0:01:18.2]} 23...
Qb7 {[%clk 0:00:12.6]} 24. Rfd1 {[%clk 0:01:14.1]} 24... Rfe8 {[%clk 0:00:12.7]}
25. h4 {[%clk 0:01:13.6]} 25... e5 {[%clk 0:00:12.9]} 26. Qg5 {[%clk 0:01:14.2]}
26... Kg7 {[%clk 0:00:11.8]} 27. Qf6+ {[%clk 0:01:13.8]} 27... Kg8 {[%clk
0:00:11.3]} 28. Rxc6 {[%clk 0:01:14.2]} 1-0